[Event "Titled Tuesday Blitz October 11 Late 2022"]
[White "Aarav Dengla"]
[Black "Thomforde-Toates, Noah"]
[WhiteFideId "45059756"]
[BlackFideId "30951992"]
[WhiteElo "2257"]
[BlackElo "2694"]
[Result "1-0"]
[Round "05"]
[TimeControl "180+1"]
[Date "2022.10.12"]
[WhiteClock "0:00:26"]
[BlackClock "0:00:09"]

1. e4 {[%clk 0:03:00]}  c5 {[%clk 0:02:53]} 2. Nf3 {[%clk 0:03:00]}  g6 {[%clk 0:02:52]} 3. d4 {[%clk 0:02:49]}  cxd4 {[%clk 0:02:53]} 4. Nxd4 {[%clk 0:02:49]}  Bg7 {[%clk 0:02:52]} 5. Nc3 {[%clk 0:02:48]}  Nc6 {[%clk 0:02:52]} 6. Be3 {[%clk 0:02:48]}  Nf6 {[%clk 0:02:52]} 7. Bc4 {[%clk 0:02:47]}  O-O {[%clk 0:02:52]} 8. f3 {[%clk 0:02:47]}  a5 {[%clk 0:02:47]} 9. Qd2 {[%clk 0:02:42]}  d6 {[%clk 0:02:40]} 10. O-O-O {[%clk 0:02:37]}  Nxd4 {[%clk 0:02:34]} 11. Bxd4 {[%clk 0:02:36]}  Be6 {[%clk 0:02:34]} 12. Bxe6 {[%clk 0:02:27]}  fxe6 {[%clk 0:02:35]} 13. h4 {[%clk 0:02:28]}  Qe8 {[%clk 0:02:11]} 14. Ne2 {[%clk 0:02:16]}  Qa4 {[%clk 0:01:57]} 15. Kb1 {[%clk 0:02:13]}  Rfc8 {[%clk 0:01:55]} 16. h5 {[%clk 0:02:08]}  Nxh5 {[%clk 0:01:43]} 17. Bxg7 {[%clk 0:02:01]}  Nxg7 {[%clk 0:01:41]} 18. Nc3 {[%clk 0:02:01]}  Qb4 {[%clk 0:01:31]} 19. Kc1 {[%clk 0:01:51]}  Rxc3 {[%clk 0:00:47]} 20. Qxc3 {[%clk 0:01:48]}  Qxc3 {[%clk 0:00:47]} 21. bxc3 {[%clk 0:01:49]}  e5 {[%clk 0:00:47]} 22. Kd2 {[%clk 0:01:43]}  Ne6 {[%clk 0:00:41]} 23. Rb1 {[%clk 0:01:43]}  Nc5 {[%clk 0:00:41]} 24. g4 {[%clk 0:01:42]}  Rf8 {[%clk 0:00:40]} 25. Rh3 {[%clk 0:01:40]}  Kg7 {[%clk 0:00:40]} 26. Rb5 {[%clk 0:01:38]}  a4 {[%clk 0:00:34]} 27. Ke3 {[%clk 0:01:38]}  Rh8 {[%clk 0:00:31]} 28. Rb1 {[%clk 0:01:34]}  h6 {[%clk 0:00:18]} 29. a3 {[%clk 0:01:30]}  Kf6 {[%clk 0:00:18]} 30. Rf1 {[%clk 0:01:14]}  Kg5 {[%clk 0:00:18]} 31. f4+ {[%clk 0:01:14]}  exf4+ {[%clk 0:00:18]} 32. Rxf4 {[%clk 0:01:14]}  Ne6 {[%clk 0:00:18]} 33. Rf7 {[%clk 0:01:12]}  Rc8 {[%clk 0:00:18]} 34. Kd2 {[%clk 0:01:11]}  Rc7 {[%clk 0:00:17]} 35. Rh7 {[%clk 0:01:10]}  Nc5 {[%clk 0:00:16]} 36. Re3 {[%clk 0:01:08]}  Kf4 {[%clk 0:00:14]} 37. Ke2 {[%clk 0:00:47]}  Ke5 {[%clk 0:00:12]} 38. Rxh6 {[%clk 0:00:45]}  Nxe4 {[%clk 0:00:10]} 39. Rxg6 {[%clk 0:00:46]}  Kf4 {[%clk 0:00:08]} 40. Re6 {[%clk 0:00:39]}  Nxc3+ {[%clk 0:00:07]} 41. Kd2 {[%clk 0:00:39]}  Nd5 {[%clk 0:00:07]} 42. R3e4+ {[%clk 0:00:39]}  Kg3 {[%clk 0:00:07]} 43. g5 {[%clk 0:00:36]}  b5 {[%clk 0:00:04]} 44. g6 {[%clk 0:00:36]}  b4 {[%clk 0:00:04]} 45. g7 {[%clk 0:00:34]}  Rc8 {[%clk 0:00:04]} 46. Rg6+ {[%clk 0:00:34]}  Kf3 {[%clk 0:00:04]} 47. g8=Q {[%clk 0:00:35]}  Rxg8 {[%clk 0:00:04]} 48. Rxg8 {[%clk 0:00:35]}  Kxe4 {[%clk 0:00:05]} 49. axb4 {[%clk 0:00:35]}  a3 {[%clk 0:00:04]} 50. b5 {[%clk 0:00:35]}  Nb6 {[%clk 0:00:03]} 51. Kc3 {[%clk 0:00:31]}  Kd5 {[%clk 0:00:03]} 52. Kb3 {[%clk 0:00:23]}  Kc5 {[%clk 0:00:02]} 53. Rg5+ {[%clk 0:00:19]}  e5 {[%clk 0:00:03]} 54. Rg6 {[%clk 0:00:20]}  Kxb5 {[%clk 0:00:03]} 55. Rxd6 {[%clk 0:00:20]}  Kc5 {[%clk 0:00:01]} 56. Re6 {[%clk 0:00:20]}  Nc4 {[%clk 0:00:02]} 57. Re8 {[%clk 0:00:19]}  Nd2+ {[%clk 0:00:02]} 58. Kxa3 {[%clk 0:00:19]}  Nc4+ {[%clk 0:00:02]} 59. Kb3 {[%clk 0:00:18]}  Nd2+ {[%clk 0:00:02]} 60. Kc3 {[%clk 0:00:18]}  Ne4+ {[%clk 0:00:03]} 61. Kd3 {[%clk 0:00:19]}  Nd6 {[%clk 0:00:04]} 62. Rxe5+ {[%clk 0:00:18]}  Kc6 {[%clk 0:00:04]} 63. c4 {[%clk 0:00:19]}  Nb7 {[%clk 0:00:04]} 64. Rh5 {[%clk 0:00:20]}  Nc5+ {[%clk 0:00:04]} 65. Kd4 {[%clk 0:00:21]}  Ne6+ {[%clk 0:00:05]} 66. Kc3 {[%clk 0:00:22]}  Nc5 {[%clk 0:00:05]} 67. Rh6+ {[%clk 0:00:22]}  Kc7 {[%clk 0:00:06]} 68. Kb4 {[%clk 0:00:22]}  Nd3+ {[%clk 0:00:06]} 69. Kb5 {[%clk 0:00:23]}  Nf4 {[%clk 0:00:07]} 70. Rh7+ {[%clk 0:00:23]}  Kd6 {[%clk 0:00:07]} 71. c5+ {[%clk 0:00:23]}  Ke6 {[%clk 0:00:08]} 72. c6 {[%clk 0:00:24]}  Nd5 {[%clk 0:00:07]} 73. c7 {[%clk 0:00:25]}  Nxc7+ {[%clk 0:00:08]} 74. Rxc7 {[%clk 0:00:25]}  Kd6 {[%clk 0:00:09]} 75. Rc6+ {[%clk 0:00:26]} 1-0


[Site "https://www.chess.com"]

[Event "Titled Tuesday Blitz October 11 Late 2022"]
[White "Alexikov, Alexander"]
[Black "Migot, Tangi"]
[WhiteFideId "14103958"]
[BlackFideId "662445"]
[WhiteElo "2222"]
[BlackElo "2488"]
[Result "0-1"]
[Round "05"]
[TimeControl "180+1"]
[Date "2022.10.12"]
[WhiteClock "0:00:08"]
[BlackClock "0:00:21"]

1. e4 {[%clk 0:03:00]}  c5 {[%clk 0:02:59]} 2. Nf3 {[%clk 0:03:00]}  Nc6 {[%clk 0:02:59]} 3. Bb5 {[%clk 0:03:00]}  e6 {[%clk 0:03:00]} 4. Nc3 {[%clk 0:02:58]}  Nge7 {[%clk 0:03:00]} 5. O-O {[%clk 0:02:55]}  Nd4 {[%clk 0:03:00]} 6. Ba4 {[%clk 0:02:54]}  Nec6 {[%clk 0:02:58]} 7. Nxd4 {[%clk 0:02:52]}  cxd4 {[%clk 0:02:56]} 8. Ne2 {[%clk 0:02:50]}  Bc5 {[%clk 0:02:57]} 9. d3 {[%clk 0:02:49]}  O-O {[%clk 0:02:55]} 10. Kh1 {[%clk 0:02:47]}  d6 {[%clk 0:02:54]} 11. f4 {[%clk 0:02:46]}  f5 {[%clk 0:02:53]} 12. Ng3 {[%clk 0:02:43]}  Ne7 {[%clk 0:02:44]} 13. Bb3 {[%clk 0:02:38]}  Kh8 {[%clk 0:02:44]} 14. Bd2 {[%clk 0:02:35]}  a5 {[%clk 0:02:43]} 15. a4 {[%clk 0:02:33]}  Bd7 {[%clk 0:02:42]} 16. Qe2 {[%clk 0:02:24]}  Rf6 {[%clk 0:02:24]} 17. Rae1 {[%clk 0:02:16]}  b6 {[%clk 0:02:14]} 18. e5 {[%clk 0:02:10]}  dxe5 {[%clk 0:02:13]} 19. Qxe5 {[%clk 0:02:10]}  Nc6 {[%clk 0:01:57]} 20. Qe2 {[%clk 0:02:08]}  Qe8 {[%clk 0:01:56]} 21. Qf2 {[%clk 0:01:56]}  Qf8 {[%clk 0:01:46]} 22. Re2 {[%clk 0:01:54]}  Re8 {[%clk 0:01:41]} 23. Rfe1 {[%clk 0:01:51]}  Bd6 {[%clk 0:01:39]} 24. c3 {[%clk 0:01:41]}  e5 {[%clk 0:01:37]} 25. fxe5 {[%clk 0:01:38]}  Bxe5 {[%clk 0:01:33]} 26. Bf4 {[%clk 0:01:31]}  Bxf4 {[%clk 0:01:30]} 27. Qxf4 {[%clk 0:01:30]}  Rxe2 {[%clk 0:01:24]} 28. Rxe2 {[%clk 0:01:30]}  dxc3 {[%clk 0:01:24]} 29. bxc3 {[%clk 0:01:28]}  g6 {[%clk 0:01:14]} 30. h4 {[%clk 0:01:23]}  Qd6 {[%clk 0:01:11]} 31. Qxd6 {[%clk 0:01:17]}  Rxd6 {[%clk 0:01:11]} 32. d4 {[%clk 0:01:16]}  Kg7 {[%clk 0:01:08]} 33. Nf1 {[%clk 0:01:13]}  Kf6 {[%clk 0:01:06]} 34. Nd2 {[%clk 0:01:13]}  Be6 {[%clk 0:00:58]} 35. Bxe6 {[%clk 0:01:09]}  Rxe6 {[%clk 0:00:59]} 36. Rxe6+ {[%clk 0:01:06]}  Kxe6 {[%clk 0:01:00]} 37. Nc4 {[%clk 0:01:06]}  Kd5 {[%clk 0:00:59]} 38. Nxb6+ {[%clk 0:01:05]}  Ke4 {[%clk 0:01:00]} 39. d5 {[%clk 0:01:02]}  Ne5 {[%clk 0:00:52]} 40. d6 {[%clk 0:01:01]}  Kd3 {[%clk 0:00:52]} 41. c4 {[%clk 0:00:59]}  Kd4 {[%clk 0:00:49]} 42. d7 {[%clk 0:00:58]}  Nc6 {[%clk 0:00:49]} 43. h5 {[%clk 0:00:51]}  Kc5 {[%clk 0:00:47]} 44. Nd5 {[%clk 0:00:49]}  gxh5 {[%clk 0:00:42]} 45. Ne7 {[%clk 0:00:47]}  Nd8 {[%clk 0:00:38]} 46. Nxf5 {[%clk 0:00:47]}  Kxc4 {[%clk 0:00:38]} 47. Kh2 {[%clk 0:00:46]}  Kb4 {[%clk 0:00:38]} 48. Kg3 {[%clk 0:00:44]}  Kxa4 {[%clk 0:00:39]} 49. Kf4 {[%clk 0:00:44]}  Kb3 {[%clk 0:00:39]} 50. Ke5 {[%clk 0:00:43]}  a4 {[%clk 0:00:39]} 51. Kd6 {[%clk 0:00:42]}  a3 {[%clk 0:00:38]} 52. Nd4+ {[%clk 0:00:42]}  Kb2 {[%clk 0:00:38]} 53. Ne6 {[%clk 0:00:40]}  Nf7+ {[%clk 0:00:35]} 54. Ke7 {[%clk 0:00:39]}  Ne5 {[%clk 0:00:34]} 55. Nc5 {[%clk 0:00:22]}  Nxd7 {[%clk 0:00:33]} 56. Kxd7 {[%clk 0:00:19]}  a2 {[%clk 0:00:33]} 57. Nd3+ {[%clk 0:00:19]}  Kb1 {[%clk 0:00:33]} 58. Nf4 {[%clk 0:00:15]}  a1=Q {[%clk 0:00:33]} 59. Ke6 {[%clk 0:00:14]}  Qg7 {[%clk 0:00:29]} 60. Kf5 {[%clk 0:00:12]}  Qg4+ {[%clk 0:00:29]} 61. Ke5 {[%clk 0:00:12]}  Qg5+ {[%clk 0:00:29]} 62. Ke4 {[%clk 0:00:11]}  h4 {[%clk 0:00:29]} 63. Kf3 {[%clk 0:00:10]}  Qf5 {[%clk 0:00:26]} 64. Ke3 {[%clk 0:00:09]}  Qg4 {[%clk 0:00:27]} 65. Ke4 {[%clk 0:00:09]}  Kc2 {[%clk 0:00:27]} 66. Ke5 {[%clk 0:00:09]}  Kd2 {[%clk 0:00:26]} 67. Ke4 {[%clk 0:00:08]}  h6 {[%clk 0:00:26]} 68. Ke5 {[%clk 0:00:08]}  Ke3 {[%clk 0:00:24]} 69. Nd5+ {[%clk 0:00:08]}  Kf2 {[%clk 0:00:24]} 70. Nf4 {[%clk 0:00:08]}  Kg3 {[%clk 0:00:21]} 0-1


[Site "https://www.chess.com"]

[Event "Titled Tuesday Blitz October 11 Late 2022"]
[White "Averjanov, Alexey"]
[Black "Mickiewicz, Piotr"]
[WhiteFideId "14109867"]
[BlackFideId "1114891"]
[WhiteElo "2655"]
[BlackElo "2246"]
[Result "1-0"]
[Round "05"]
[TimeControl "180+1"]
[Date "2022.10.12"]
[WhiteClock "0:00:18"]
[BlackClock "0:00:03"]

1. d4 {[%clk 0:03:00]}  Nf6 {[%clk 0:02:58]} 2. c4 {[%clk 0:03:01]}  e6 {[%clk 0:02:58]} 3. Nf3 {[%clk 0:03:01]}  Bb4+ {[%clk 0:02:57]} 4. Nbd2 {[%clk 0:02:59]}  d5 {[%clk 0:02:56]} 5. Qc2 {[%clk 0:02:58]}  O-O {[%clk 0:02:54]} 6. g3 {[%clk 0:02:58]}  b6 {[%clk 0:02:51]} 7. Bg2 {[%clk 0:02:58]}  Bb7 {[%clk 0:02:51]} 8. O-O {[%clk 0:02:58]}  Nbd7 {[%clk 0:02:43]} 9. b3 {[%clk 0:02:57]}  c5 {[%clk 0:02:34]} 10. Bb2 {[%clk 0:02:57]}  cxd4 {[%clk 0:02:29]} 11. Nxd4 {[%clk 0:02:55]}  Rc8 {[%clk 0:02:29]} 12. Rac1 {[%clk 0:02:54]}  Qe7 {[%clk 0:02:17]} 13. Rfd1 {[%clk 0:02:52]}  dxc4 {[%clk 0:01:35]} 14. Bxb7 {[%clk 0:02:41]}  cxb3 {[%clk 0:01:34]} 15. Qxc8 {[%clk 0:02:36]}  Rxc8 {[%clk 0:01:21]} 16. Rxc8+ {[%clk 0:02:36]}  Nf8 {[%clk 0:01:20]} 17. Bf3 {[%clk 0:02:23]}  Qd7 {[%clk 0:01:06]} 18. Rc4 {[%clk 0:02:01]}  Bxd2 {[%clk 0:01:05]} 19. Rxd2 {[%clk 0:02:02]}  bxa2 {[%clk 0:01:04]} 20. Rc1 {[%clk 0:01:42]}  e5 {[%clk 0:00:59]} 21. Nb3 {[%clk 0:01:42]}  Qb5 {[%clk 0:00:58]} 22. Na1 {[%clk 0:01:35]}  e4 {[%clk 0:00:58]} 23. Bg2 {[%clk 0:01:35]}  h5 {[%clk 0:00:40]} 24. Bxf6 {[%clk 0:01:32]}  gxf6 {[%clk 0:00:39]} 25. Rxa2 {[%clk 0:01:32]}  f5 {[%clk 0:00:37]} 26. e3 {[%clk 0:01:27]}  a5 {[%clk 0:00:35]} 27. Bf1 {[%clk 0:01:27]}  Qe5 {[%clk 0:00:31]} 28. h4 {[%clk 0:01:24]}  Ne6 {[%clk 0:00:30]} 29. Nc2 {[%clk 0:01:21]}  Nc5 {[%clk 0:00:25]} 30. Nd4 {[%clk 0:01:20]}  a4 {[%clk 0:00:21]} 31. Rb1 {[%clk 0:01:18]}  Qf6 {[%clk 0:00:20]} 32. Rab2 {[%clk 0:01:15]}  Nd7 {[%clk 0:00:19]} 33. Bb5 {[%clk 0:01:11]}  a3 {[%clk 0:00:18]} 34. Ra2 {[%clk 0:01:02]}  Ne5 {[%clk 0:00:17]} 35. Rxa3 {[%clk 0:00:57]}  f4 {[%clk 0:00:18]} 36. exf4 {[%clk 0:00:53]}  Ng4 {[%clk 0:00:18]} 37. Ra8+ {[%clk 0:00:49]}  Kg7 {[%clk 0:00:16]} 38. Nc2 {[%clk 0:00:42]}  Qc3 {[%clk 0:00:15]} 39. Ra2 {[%clk 0:00:33]}  Nxf2 {[%clk 0:00:11]} 40. Kxf2 {[%clk 0:00:29]}  Qf3+ {[%clk 0:00:10]} 41. Ke1 {[%clk 0:00:27]}  Qxg3+ {[%clk 0:00:09]} 42. Kd2 {[%clk 0:00:23]}  Qxf4+ {[%clk 0:00:07]} 43. Kc3 {[%clk 0:00:22]}  Qe5+ {[%clk 0:00:05]} 44. Nd4 {[%clk 0:00:18]}  Qc5+ {[%clk 0:00:04]} 45. Bc4 {[%clk 0:00:18]}  Qxd4+ {[%clk 0:00:05]} 46. Kxd4 {[%clk 0:00:18]}  Kf6 {[%clk 0:00:05]} 47. Rxb6+ {[%clk 0:00:18]}  Ke7 {[%clk 0:00:06]} 48. Ra7+ {[%clk 0:00:18]}  Kf8 {[%clk 0:00:04]} 49. Rxf7+ {[%clk 0:00:17]}  Ke8 {[%clk 0:00:03]} 50. Rb8# {[%clk 0:00:18]} 1-0


[Site "https://www.chess.com"]

[Event "Titled Tuesday Blitz October 11 Late 2022"]
[White "Banzea, Alexandru-Bogdan"]
[Black "Vujcic, Milena"]
[WhiteFideId "1232622"]
[BlackFideId "954748"]
[WhiteElo "2294"]
[BlackElo "1931"]
[Result "1-0"]
[Round "05"]
[TimeControl "180+1"]
[Date "2022.10.12"]
[WhiteClock "0:01:02"]
[BlackClock "0:00:11"]

1. d4 {[%clk 0:03:00]}  Nf6 {[%clk 0:02:59]} 2. Bf4 {[%clk 0:03:00]}  d5 {[%clk 0:02:58]} 3. Nf3 {[%clk 0:03:00]}  c5 {[%clk 0:02:58]} 4. e3 {[%clk 0:03:01]}  Nc6 {[%clk 0:02:59]} 5. Nbd2 {[%clk 0:03:01]}  Qb6 {[%clk 0:02:58]} 6. dxc5 {[%clk 0:03:01]}  Qxc5 {[%clk 0:02:54]} 7. a3 {[%clk 0:03:00]}  Bf5 {[%clk 0:02:42]} 8. c4 {[%clk 0:02:56]}  Nh5 {[%clk 0:01:28]} 9. Bg5 {[%clk 0:02:30]}  h6 {[%clk 0:01:08]} 10. Bh4 {[%clk 0:02:27]}  g5 {[%clk 0:01:05]} 11. cxd5 {[%clk 0:02:18]}  Qxd5 {[%clk 0:00:53]} 12. Bc4 {[%clk 0:02:15]}  Qc5 {[%clk 0:00:47]} 13. Rc1 {[%clk 0:02:14]}  Qb6 {[%clk 0:00:45]} 14. Nd4 {[%clk 0:02:02]}  Nxd4 {[%clk 0:00:38]} 15. exd4 {[%clk 0:01:59]}  Nf4 {[%clk 0:00:29]} 16. Qf3 {[%clk 0:01:45]}  Qxd4 {[%clk 0:00:18]} 17. Qxb7 {[%clk 0:01:35]}  Rd8 {[%clk 0:00:14]} 18. O-O {[%clk 0:01:21]}  Bg7 {[%clk 0:00:14]} 19. Bb5+ {[%clk 0:01:10]}  Bd7 {[%clk 0:00:14]} 20. Nf3 {[%clk 0:01:03]}  Qd3 {[%clk 0:00:11]} 21. Bxd3 {[%clk 0:01:02]} 1-0


[Site "https://www.chess.com"]

[Event "Titled Tuesday Blitz October 11 Late 2022"]
[White "Barash, Anton"]
[Black "Nozdrachev, Leonid"]
[WhiteFideId "30935229"]
[BlackFideId "24113433"]
[WhiteElo "2294"]
[BlackElo "2249"]
[Result "0-1"]
[Round "05"]
[TimeControl "180+1"]
[Date "2022.10.12"]
[WhiteClock "0:00:53"]
[BlackClock "0:01:00"]

1. e4 {[%clk 0:03:00]}  c5 {[%clk 0:02:34]} 2. Nf3 {[%clk 0:03:00]}  Nc6 {[%clk 0:02:32]} 3. d4 {[%clk 0:03:01]}  cxd4 {[%clk 0:02:32]} 4. Nxd4 {[%clk 0:03:02]}  Nf6 {[%clk 0:02:30]} 5. Nc3 {[%clk 0:03:02]}  e5 {[%clk 0:02:28]} 6. Ndb5 {[%clk 0:03:02]}  d6 {[%clk 0:02:26]} 7. Bg5 {[%clk 0:03:02]}  a6 {[%clk 0:02:24]} 8. Na3 {[%clk 0:03:03]}  b5 {[%clk 0:02:22]} 9. Nd5 {[%clk 0:03:03]}  Be7 {[%clk 0:02:21]} 10. Bxf6 {[%clk 0:03:03]}  Bxf6 {[%clk 0:02:20]} 11. c3 {[%clk 0:03:03]}  Bg5 {[%clk 0:02:17]} 12. Nc2 {[%clk 0:03:04]}  O-O {[%clk 0:02:13]} 13. a4 {[%clk 0:03:03]}  Rb8 {[%clk 0:02:04]} 14. axb5 {[%clk 0:02:58]}  axb5 {[%clk 0:02:04]} 15. Bd3 {[%clk 0:02:48]}  Be6 {[%clk 0:01:57]} 16. Ncb4 {[%clk 0:02:46]}  Bxd5 {[%clk 0:01:49]} 17. Nxd5 {[%clk 0:02:46]}  Ne7 {[%clk 0:01:48]} 18. h4 {[%clk 0:02:18]}  Nxd5 {[%clk 0:01:41]} 19. exd5 {[%clk 0:01:56]}  Bh6 {[%clk 0:01:36]} 20. Qh5 {[%clk 0:01:51]}  e4 {[%clk 0:01:22]} 21. Bc2 {[%clk 0:01:51]}  Qf6 {[%clk 0:01:17]} 22. O-O {[%clk 0:01:45]}  Rfe8 {[%clk 0:01:11]} 23. Ra7 {[%clk 0:01:37]}  e3 {[%clk 0:01:05]} 24. Qe2 {[%clk 0:00:59]}  exf2+ {[%clk 0:01:01]} 25. Rxf2 {[%clk 0:00:54]}  Rxe2 {[%clk 0:00:59]} 26. Rxf6 {[%clk 0:00:53]}  gxf6 {[%clk 0:01:00]} 0-1


[Site "https://www.chess.com"]

[Event "Titled Tuesday Blitz October 11 Late 2022"]
[White "Bernadskiy, Vitaliy"]
[Black "Koellner, Ruben Gideon"]
[WhiteFideId "14100371"]
[BlackFideId "12993093"]
[WhiteElo "2473"]
[BlackElo "2303"]
[Result "1-0"]
[Round "05"]
[TimeControl "180+1"]
[Date "2022.10.11"]
[WhiteClock "0:00:07"]
[BlackClock "0:00:01"]

1. d4 {[%clk 0:03:00]}  d6 {[%clk 0:02:58]} 2. Nf3 {[%clk 0:03:01]}  Nf6 {[%clk 0:02:58]} 3. Nc3 {[%clk 0:03:02]}  Nbd7 {[%clk 0:02:57]} 4. e4 {[%clk 0:02:51]}  e5 {[%clk 0:02:56]} 5. h3 {[%clk 0:02:52]}  c6 {[%clk 0:02:55]} 6. a4 {[%clk 0:02:50]}  Be7 {[%clk 0:02:54]} 7. Be3 {[%clk 0:02:50]}  h6 {[%clk 0:02:53]} 8. Bc4 {[%clk 0:02:50]}  Qc7 {[%clk 0:02:53]} 9. Qd2 {[%clk 0:02:49]}  Nf8 {[%clk 0:02:42]} 10. O-O-O {[%clk 0:02:39]}  Ng6 {[%clk 0:02:42]} 11. g4 {[%clk 0:02:36]}  Nh7 {[%clk 0:02:27]} 12. Kb1 {[%clk 0:02:27]}  a6 {[%clk 0:02:26]} 13. Bb3 {[%clk 0:02:24]}  b5 {[%clk 0:02:26]} 14. Rhg1 {[%clk 0:02:21]}  Rb8 {[%clk 0:02:04]} 15. Rg3 {[%clk 0:02:09]}  bxa4 {[%clk 0:01:52]} 16. Bxa4 {[%clk 0:02:03]}  Bd7 {[%clk 0:01:49]} 17. Qd3 {[%clk 0:01:47]}  a5 {[%clk 0:01:20]} 18. dxe5 {[%clk 0:01:27]}  dxe5 {[%clk 0:01:16]} 19. Qc4 {[%clk 0:01:26]}  O-O {[%clk 0:00:59]} 20. Nd5 {[%clk 0:01:23]}  Qd6 {[%clk 0:00:27]} 21. Nxe7+ {[%clk 0:01:15]}  Qxe7 {[%clk 0:00:28]} 22. Bc5 {[%clk 0:01:15]}  Qe8 {[%clk 0:00:09]} 23. Bxf8 {[%clk 0:01:13]}  Nhxf8 {[%clk 0:00:10]} 24. Qc3 {[%clk 0:01:08]}  Rb4 {[%clk 0:00:08]} 25. Bb3 {[%clk 0:01:08]}  Rxe4 {[%clk 0:00:06]} 26. Rgg1 {[%clk 0:01:06]}  a4 {[%clk 0:00:06]} 27. Bc4 {[%clk 0:01:06]}  Be6 {[%clk 0:00:06]} 28. Bxe6 {[%clk 0:00:58]}  Qxe6 {[%clk 0:00:07]} 29. Rge1 {[%clk 0:00:56]}  Rxe1 {[%clk 0:00:07]} 30. Rxe1 {[%clk 0:00:55]}  f6 {[%clk 0:00:07]} 31. Nd2 {[%clk 0:00:49]}  Nf4 {[%clk 0:00:07]} 32. Re4 {[%clk 0:00:45]}  Qd5 {[%clk 0:00:06]} 33. h4 {[%clk 0:00:35]}  N8e6 {[%clk 0:00:04]} 34. g5 {[%clk 0:00:35]}  hxg5 {[%clk 0:00:04]} 35. hxg5 {[%clk 0:00:34]}  Nxg5 {[%clk 0:00:05]} 36. Rxa4 {[%clk 0:00:34]}  Qh1+ {[%clk 0:00:04]} 37. Ka2 {[%clk 0:00:34]}  Kh7 {[%clk 0:00:01]} 38. Rc4 {[%clk 0:00:27]}  Qd5 {[%clk 0:00:01]} 39. b3 {[%clk 0:00:26]}  Nge6 {[%clk 0:00:01]} 40. Ne4 {[%clk 0:00:18]}  c5 {[%clk 0:00:01]} 41. Nxc5 {[%clk 0:00:17]}  Qa8+ {[%clk 0:00:02]} 42. Kb2 {[%clk 0:00:16]}  Nd4 {[%clk 0:00:02]} 43. Nd3 {[%clk 0:00:09]}  Nfe2 {[%clk 0:00:02]} 44. Qe1 {[%clk 0:00:09]}  Qg2 {[%clk 0:00:02]} 45. f4 {[%clk 0:00:08]}  e4 {[%clk 0:00:01]} 46. Qh4+ {[%clk 0:00:08]}  Kg6 {[%clk 0:00:01]} 47. f5+ {[%clk 0:00:07]} 1-0


[Site "https://www.chess.com"]

[Event "Titled Tuesday Blitz October 11 Late 2022"]
[White "Besedes, Danilo"]
[Black "Leiva, Gianmarco"]
[WhiteFideId "946796"]
[BlackFideId "3804399"]
[WhiteElo "2352"]
[BlackElo "2285"]
[Result "0-1"]
[Round "05"]
[TimeControl "180+1"]
[Date "2022.10.12"]
[WhiteClock "0:00:09"]
[BlackClock "0:00:06"]

1. d4 {[%clk 0:03:00]}  Nf6 {[%clk 0:03:00]} 2. Nf3 {[%clk 0:03:00]}  d5 {[%clk 0:02:55]} 3. Bf4 {[%clk 0:03:00]}  c6 {[%clk 0:02:51]} 4. c3 {[%clk 0:02:58]}  Bf5 {[%clk 0:02:42]} 5. Qb3 {[%clk 0:02:56]}  Qc8 {[%clk 0:02:42]} 6. Nbd2 {[%clk 0:02:55]}  e6 {[%clk 0:02:41]} 7. e3 {[%clk 0:02:54]}  Nh5 {[%clk 0:02:36]} 8. Bg5 {[%clk 0:02:51]}  h6 {[%clk 0:02:31]} 9. Bh4 {[%clk 0:02:51]}  Nd7 {[%clk 0:02:31]} 10. Be2 {[%clk 0:02:48]}  g5 {[%clk 0:02:06]} 11. Bg3 {[%clk 0:02:33]}  Nxg3 {[%clk 0:02:06]} 12. hxg3 {[%clk 0:02:31]}  Bg7 {[%clk 0:02:05]} 13. Bd1 {[%clk 0:02:24]}  c5 {[%clk 0:01:57]} 14. Be2 {[%clk 0:02:01]}  c4 {[%clk 0:01:46]} 15. Qa3 {[%clk 0:01:52]}  Qc7 {[%clk 0:01:41]} 16. Nh2 {[%clk 0:01:02]}  b5 {[%clk 0:01:38]} 17. b3 {[%clk 0:00:45]}  a5 {[%clk 0:01:33]} 18. Qb2 {[%clk 0:00:40]}  a4 {[%clk 0:01:05]} 19. b4 {[%clk 0:00:37]}  a3 {[%clk 0:01:05]} 20. Qc1 {[%clk 0:00:35]}  Kd8 {[%clk 0:00:58]} 21. Bd1 {[%clk 0:00:34]}  Kc8 {[%clk 0:00:31]} 22. Bc2 {[%clk 0:00:33]}  Bd3 {[%clk 0:00:26]} 23. Qb1 {[%clk 0:00:31]}  Bxc2 {[%clk 0:00:24]} 24. Qxc2 {[%clk 0:00:31]}  Kb7 {[%clk 0:00:21]} 25. O-O-O {[%clk 0:00:30]}  Nb6 {[%clk 0:00:21]} 26. Rde1 {[%clk 0:00:29]}  f5 {[%clk 0:00:20]} 27. g4 {[%clk 0:00:27]}  Rhf8 {[%clk 0:00:20]} 28. gxf5 {[%clk 0:00:26]}  exf5 {[%clk 0:00:20]} 29. Nhf3 {[%clk 0:00:25]}  Rae8 {[%clk 0:00:16]} 30. Qd1 {[%clk 0:00:19]}  Na4 {[%clk 0:00:16]} 31. Qc2 {[%clk 0:00:18]}  Nb2 {[%clk 0:00:16]} 32. Ref1 {[%clk 0:00:17]}  Qd6 {[%clk 0:00:13]} 33. Nb1 {[%clk 0:00:16]}  Nd3+ {[%clk 0:00:12]} 34. Kd1 {[%clk 0:00:16]}  Qa6 {[%clk 0:00:11]} 35. Ne1 {[%clk 0:00:16]}  Nb2+ {[%clk 0:00:10]} 36. Kc1 {[%clk 0:00:16]}  Rf7 {[%clk 0:00:07]} 37. Nxa3 {[%clk 0:00:16]}  Nd3+ {[%clk 0:00:06]} 38. Nxd3 {[%clk 0:00:15]}  Qxa3+ {[%clk 0:00:07]} 39. Qb2 {[%clk 0:00:14]}  Ra8 {[%clk 0:00:04]} 40. Qxa3 {[%clk 0:00:13]}  Rxa3 {[%clk 0:00:05]} 41. Nb2 {[%clk 0:00:10]}  Rxc3+ {[%clk 0:00:05]} 42. Kb1 {[%clk 0:00:08]}  Ra3 {[%clk 0:00:05]} 43. Rc1 {[%clk 0:00:07]}  Kb6 {[%clk 0:00:04]} 44. Rc2 {[%clk 0:00:07]}  Rfa7 {[%clk 0:00:04]} 45. Nd1 {[%clk 0:00:08]}  R7a4 {[%clk 0:00:03]} 46. Rb2 {[%clk 0:00:08]}  Ra7 {[%clk 0:00:02]} 47. Rc2 {[%clk 0:00:07]}  R7a4 {[%clk 0:00:02]} 48. Rb2 {[%clk 0:00:08]}  Rd3 {[%clk 0:00:03]} 49. Kc1 {[%clk 0:00:06]}  Kc7 {[%clk 0:00:03]} 50. Kc2 {[%clk 0:00:06]}  Raa3 {[%clk 0:00:03]} 51. Re1 {[%clk 0:00:04]}  Kd7 {[%clk 0:00:03]} 52. Re2 {[%clk 0:00:05]}  Ke7 {[%clk 0:00:03]} 53. Rd2 {[%clk 0:00:05]}  Rxd2+ {[%clk 0:00:01]} 54. Kxd2 {[%clk 0:00:05]}  f4 {[%clk 0:00:02]} 55. Nc3 {[%clk 0:00:05]}  fxe3+ {[%clk 0:00:02]} 56. fxe3 {[%clk 0:00:06]}  Ke6 {[%clk 0:00:02]} 57. Nxb5 {[%clk 0:00:06]}  Ra4 {[%clk 0:00:01]} 58. Nc3 {[%clk 0:00:07]}  Ra8 {[%clk 0:00:01]} 59. a4 {[%clk 0:00:07]}  Kd6 {[%clk 0:00:02]} 60. b5 {[%clk 0:00:08]}  Bf6 {[%clk 0:00:01]} 61. b6 {[%clk 0:00:08]}  Bd8 {[%clk 0:00:02]} 62. b7 {[%clk 0:00:08]}  Rb8 {[%clk 0:00:03]} 63. Rb5 {[%clk 0:00:07]}  Kc6 {[%clk 0:00:02]} 64. Rxd5 {[%clk 0:00:08]}  Bc7 {[%clk 0:00:02]} 65. Rb5 {[%clk 0:00:08]}  Rxb7 {[%clk 0:00:02]} 66. Rxb7 {[%clk 0:00:08]}  Kxb7 {[%clk 0:00:03]} 67. d5 {[%clk 0:00:09]}  Ba5 {[%clk 0:00:03]} 68. e4 {[%clk 0:00:09]}  h5 {[%clk 0:00:03]} 69. Kc2 {[%clk 0:00:09]}  Bxc3 {[%clk 0:00:03]} 70. Kxc3 {[%clk 0:00:09]}  g4 {[%clk 0:00:04]} 71. Kxc4 {[%clk 0:00:10]}  h4 {[%clk 0:00:04]} 72. Kd3 {[%clk 0:00:10]}  h3 {[%clk 0:00:05]} 73. gxh3 {[%clk 0:00:10]}  gxh3 {[%clk 0:00:06]} 74. Ke2 {[%clk 0:00:09]}  h2 {[%clk 0:00:06]} 0-1


[Site "https://www.chess.com"]